fUSD/lending_fUSD_20240420
["ID","MTS","AMOUNT","RATE_DAILY","PERIOD"]
[322992315,1713577845242,-500.0,0.00015068,2]
[322992316,1713577845251,-531.27,0.00015068,2]
[322992317,1713577845260,-500.0,0.00015068,2]
[322992318,1713577845269,-2909.76,0.00015068,2]
[322992319,1713577845278,-500.0,0.00015068,2]
[322992320,1713577845287,-500.0,0.00015068,2]
[322992321,1713577845297,-2071.97,0.00015068,2]
[322992322,1713577845306,-553.5948995,0.00015068,2]
[322992323,1713577845315,-500.0,0.00015068,2]
[322992324,1713577845324,-500.0,0.00015068,2]
[322992325,1713577845334,-500.0,0.00015068,2]
[322992326,1713577845343,-558.07,0.00015068,2]
[322992327,1713577845352,-500.0,0.00015068,2]
[322992328,1713577845361,-2136.1,0.00015068,2]
[322992329,1713577845370,-3016.5,0.00015068,2]
[322992330,1713577845380,-3488.07,0.00015068,2]
[322992331,1713577845393,-1432.87,0.00015068,2]
[322992332,1713577845402,-3613.11,0.00015068,2]
[322992333,1713577845412,-932.82,0.00015068,2]
[322992334,1713577845421,-1826.21,0.00015068,2]
[322992335,1713577845431,-500.0,0.00015068,2]
[322992336,1713577845440,-1816.48,0.00015068,2]
[322992337,1713577845450,-500.0,0.00015068,2]
[322992338,1713577845459,-500.0,0.00015068,2]
[322992339,1713577845469,-624.99,0.00015068,2]
[322992340,1713577845480,-500.0,0.00015068,2]
[322992341,1713577845491,-500.0,0.00015068,2]
[322992342,1713577845500,-2253.85,0.00015068,2]
[322992343,1713577845511,-3369.09,0.00015068,2]
[322992344,1713577845521,-500.0,0.00015068,2]
[322992345,1713577845532,-500.0,0.00015068,2]
[322992346,1713577845541,-500.0,0.00015068,2]
[322992347,1713577845551,-500.0,0.00015068,2]
[322992348,1713577845560,-500.0,0.00015068,2]
[322992349,1713577845569,-631.32,0.00015068,2]
[322992350,1713577845581,-500.0,0.00015068,2]
[322992351,1713577845593,-500.0,0.00015068,2]
[322992352,1713577845603,-7036.36,0.00015068,2]
[322992353,1713577845612,-770.68,0.00015068,2]
[322992354,1713577845623,-500.0,0.00015068,2]
[322992355,1713577845632,-500.0,0.00015068,2]
[322992356,1713577845641,-810.26,0.00015068,2]
[322992357,1713577845650,-500.0,0.00015068,2]
[322992358,1713577845661,-2522.17,0.00015068,2]
[322992359,1713577845670,-1705.29,0.00015068,2]
[322992360,1713577845679,-23045.37,0.00015068,2]
[322992361,1713577845688,-21610.68,0.00015068,2]
[322992362,1713577845698,-1406.03,0.00015068,2]
[322992364,1713577845707,-1585.87,0.00015068,2]
[322992365,1713577845716,-506.41467828,0.00015068,2]
[322992366,1713577845726,-1620.32,0.00015068,2]
[322992367,1713577845735,-500.0,0.00015068,2]
[322992368,1713577845744,-502.20200781,0.00015068,2]
[322992369,1713577845754,-500.0,0.00015068,2]
[322992370,1713577845763,-500.0,0.00015068,2]
[322992371,1713577845772,-500.0,0.00015068,2]
[322992372,1713577845781,-500.0,0.00015068,2]
[322992373,1713577845790,-651.4,0.00015068,2]
[322992374,1713577845799,-5942.57,0.00015068,2]
[322992375,1713577845809,-500.0,0.00015068,2]
[322992376,1713577845819,-500.0,0.00015068,2]
[322992377,1713577845828,-1896.55,0.00015068,2]
[322992378,1713577845838,-2713.72,0.00015068,2]
[322992379,1713577845847,-503.90014461,0.00015068,2]
[322992380,1713577845856,-1794.73,0.00015068,2]
[322992381,1713577845865,-670.7,0.00015068,2]
[322992382,1713577845874,-732.25,0.00015068,2]
[322992383,1713577845884,-500.0,0.00015068,2]
[322992384,1713577845893,-500.0,0.00015068,2]
[322992385,1713577845902,-1049.59,0.00015068,2]
[322992386,1713577845912,-1084.9,0.00015068,2]
[322992387,1713577845921,-500.0,0.00015068,2]
[322992388,1713577845931,-500.0,0.00015068,2]
[322992389,1713577845940,-31322.11,0.00015068,2]
[322992390,1713577845949,-644.45,0.00015068,2]
[322992391,1713577845959,-3113.19,0.00015068,2]
[322992392,1713577845968,-4383.01,0.00015068,2]
[322992393,1713577845979,-500.0,0.00015068,2]
[322992394,1713577845988,-795.67,0.00015068,2]
[322992395,1713577845998,-766.48,0.00015068,2]
[322992396,1713577846007,-782.32,0.00015068,2]
[322992397,1713577846017,-671.34,0.00015068,2]
[322992398,1713577846026,-874.97,0.00015068,2]
[322992399,1713577846036,-500.0,0.00015068,2]
[322992400,1713577846045,-661.47,0.00015068,2]
[322992401,1713577846055,-3405.14,0.00015068,2]
[322992402,1713577846064,-500.0,0.00015068,2]
[322992403,1713577846076,-500.0,0.00015068,2]
[322992404,1713577846086,-500.0,0.00015068,2]
[322992405,1713577846097,-500.0,0.00015068,2]
[322992406,1713577846106,-500.0,0.00015068,2]
[322992407,1713577846117,-2870.15,0.00015068,2]
[322992408,1713577846128,-500.0,0.00015068,2]
[322992409,1713577846137,-500.0,0.00015068,2]
[322992410,1713577846147,-500.0,0.00015068,2]
[322992411,1713577846157,-822.2,0.00015068,2]
[322992412,1713577846166,-1870.02,0.00015068,2]
[322992413,1713577846175,-884.03,0.00015068,2]
[322992414,1713577846185,-504.07286444,0.00015068,2]
[322992415,1713577846194,-1025.64,0.00015068,2]
[322992416,1713577846204,-726.87,0.00015068,2]
[322992417,1713577846215,-500.0,0.00015068,2]
[322992418,1713577846227,-500.0,0.00015068,2]
[322992419,1713577846237,-1390.42,0.00015068,2]
[322992420,1713577846246,-1581.75,0.00015068,2]
[322992421,1713577846255,-500.54555897,0.00015068,2]
[322992422,1713577846265,-4301.91,0.00015068,2]
[322992423,1713577846275,-500.0,0.00015068,2]
[322992424,1713577846285,-571.67,0.00015068,2]
[322992425,1713577846294,-2801.87,0.00015068,2]
[322992426,1713577846307,-500.0,0.00015068,2]
[322992427,1713577846317,-678.49,0.00015068,2]
[322992428,1713577846326,-2433.36,0.00015068,2]
[322992429,1713577846336,-6986.88,0.00015068,2]
[322992430,1713577846346,-500.0,0.00015068,2]
[322992431,1713577846355,-7772.24,0.00015068,2]
[322992432,1713577846366,-626.13,0.00015068,2]
[322992433,1713577846377,-500.0,0.00015068,2]
[322992434,1713577846388,-500.0,0.00015068,2]
[322992435,1713577846398,-500.0,0.00015068,2]
[322992436,1713577846408,-500.0,0.00015068,2]
[322992437,1713577846418,-3985.59,0.00015068,2]
[322992438,1713577846427,-580.12,0.00015068,2]
[322992439,1713577846437,-797.5,0.00015068,2]
[322992440,1713577846446,-500.0,0.00015068,2]
[322992441,1713577846455,-1366.91,0.00015068,2]
[322992442,1713577846465,-500.0,0.00015068,2]
[322992443,1713577846475,-500.0,0.00015068,2]
[322992444,1713577846484,-11482.54,0.00015068,2]
[322992445,1713577846493,-2897.2,0.00015068,2]
[322992446,1713577846502,-500.0,0.00015068,2]
[322992447,1713577846511,-500.0,0.00015068,2]
[322992448,1713577846522,-1039.36,0.00015068,2]
[322992449,1713577846531,-551.67,0.00015068,2]
[322992450,1713577846540,-500.0,0.00015068,2]
[322992451,1713577846550,-1011.1,0.00015068,2]
[322992452,1713577846559,-1039.67,0.00015068,2]
[322992453,1713577846568,-2832.09,0.00015068,2]
[322992454,1713577846577,-516.54,0.00015068,2]
[322992455,1713577846588,-500.0,0.00015068,2]
[322992456,1713577846598,-500.0,0.00015068,2]
[322992457,1713577846607,-500.0,0.00015068,2]
[322992458,1713577846616,-1914.51,0.00015068,2]
[322992459,1713577846627,-500.0,0.00015068,2]
[322992460,1713577846636,-638.15,0.00015068,2]
[322992461,1713577846646,-1630.68,0.00015068,2]
[322992462,1713577846656,-503.24,0.00015068,2]
[322992463,1713577846667,-500.0,0.00015068,2]
[322992464,1713577846677,-514.14,0.00015068,2]
[322992465,1713577846687,-663.6,0.00015068,2]
[322992466,1713577846696,-500.0,0.00015068,2]
[322992467,1713577846707,-1167.69,0.00015068,2]
[322992468,1713577846716,-815.48,0.00015068,2]
[322992469,1713577846727,-504.95862518,0.00015068,2]
[322992470,1713577846737,-1266.98,0.00015068,2]
[322992471,1713577846746,-500.0,0.00015068,2]
[322992472,1713577846758,-500.0,0.00015068,2]
[322992473,1713577846767,-996.67,0.00015068,2]
[322992474,1713577846778,-500.0,0.00015068,2]
[322992475,1713577846788,-704.58,0.00015068,2]
[322992476,1713577846797,-500.0,0.00015068,2]
[322992477,1713577846808,-1155.8,0.00015068,2]
[322992478,1713577846819,-500.0,0.00015068,2]
[322992479,1713577846829,-500.0,0.00015068,2]
[322992480,1713577846842,-500.0,0.00015068,2]
[322992481,1713577846851,-500.0,0.00015068,2]
[322992482,1713577846861,-500.0,0.00015068,2]
[322992483,1713577846872,-500.0,0.00015068,2]
[322992484,1713577846882,-500.0,0.00015068,2]
[322992485,1713577846894,-4860.34,0.00015068,2]
[322992486,1713577846904,-1683.02,0.00015068,2]
[322992487,1713577846913,-3200.15,0.00015068,2]
[322992488,1713577846922,-2809.86,0.00015068,2]
[322992489,1713577846932,-1350.8,0.00015068,2]
[322992490,1713577846942,-542.24,0.00015068,2]
[322992491,1713577846952,-500.0,0.00015068,2]
[322992492,1713577846962,-500.0,0.00015068,2]
[322992493,1713577846971,-918.58,0.00015068,2]
[322992494,1713577846984,-500.0,0.00015068,2]
[322992495,1713577846994,-576.58,0.00015068,2]
[322992496,1713577847004,-500.0,0.00015068,2]
[322992497,1713577847017,-500.0,0.00015068,2]
[322992498,1713577847027,-853.81,0.00015068,2]
[322992499,1713577847037,-500.0,0.00015068,2]
[322992500,1713577847046,-2491.82,0.00015068,2]
[322992501,1713577847056,-500.0,0.00015068,2]
[322992502,1713577847065,-500.0,0.00015068,2]
[322992503,1713577847075,-500.0,0.00015068,2]
[322992504,1713577847085,-2299.57,0.00015068,2]
[322992505,1713577847094,-2089.24,0.00015068,2]
[322992506,1713577847104,-1544.76,0.00015068,2]
[322992507,1713577847113,-510.25,0.00015068,2]
[322992508,1713577847122,-538.65,0.00015068,2]
[322992509,1713577847132,-500.0,0.00015068,2]
[322992510,1713577847142,-500.0,0.00015068,2]
[322992511,1713577847153,-500.0,0.00015068,2]
[322992512,1713577847163,-634.83,0.00015068,2]
[322992513,1713577847174,-3007.68,0.00015068,2]
[322992514,1713577847185,-5408.41,0.00015068,2]
[322992515,1713577847195,-500.0,0.00015068,2]
[322992516,1713577847205,-500.0,0.00015068,2]
[322992517,1713577847214,-150.0,0.00015068,2]
[322992518,1713577847224,-2711.24,0.00015068,2]
[322992519,1713577847241,-975.64,0.00015068,2]
[322992520,1713577847251,-604.54,0.00015068,2]
[322992521,1713577847261,-500.0,0.00015068,2]
[322992522,1713577847270,-3300.14,0.00015068,2]
[322992523,1713577847380,-500.0,0.00015068,2]
[322992524,1713577847390,-500.0,0.00015068,2]
[322992525,1713577847400,-500.0,0.00015068,2]
[322992526,1713577847409,-1483.4,0.00015068,2]
[322992527,1713577847418,-730.59,0.00015068,2]
[322992528,1713577847426,-500.0,0.00015068,2]
[322992529,1713577847435,-597.35,0.00015068,2]
[322992530,1713577847444,-500.0,0.00015068,2]
[322992531,1713577847453,-1099.99,0.00015068,2]
[322992532,1713577847462,-725.22,0.00015068,2]
[322992533,1713577847471,-3591.21,0.00015068,2]
[322992534,1713577847485,-500.0,0.00015068,2]
[322992535,1713577847494,-4843.77,0.00015068,2]
[322992536,1713577847503,-500.0,0.00015068,2]
[322992537,1713577847513,-2459.65,0.00015068,2]
[322992538,1713577847522,-500.0,0.00015068,2]
[322992539,1713577847531,-3766.8,0.00015068,2]
[322992540,1713577847540,-500.0,0.00015068,2]
[322992541,1713577847549,-500.0,0.00015068,2]
[322992542,1713577847558,-2203.61,0.00015068,2]
[322992543,1713577847567,-500.0,0.00015068,2]
[322992544,1713577847576,-500.0,0.00015068,2]
[322992545,1713577847589,-801.23,0.00015068,2]
[322992546,1713577847598,-595.4,0.00015068,2]
[322992547,1713577847607,-2848.1,0.00015068,2]
[322992548,1713577847616,-604.83,0.00015068,2]
[322992549,1713577847626,-1675.93,0.00015068,2]
[322992550,1713577847635,-500.0,0.00015068,2]
[322992551,1713577847643,-4139.29,0.00015068,2]
[322992552,1713577847652,-500.0,0.00015068,2]
[322992553,1713577847662,-1862.32,0.00015068,2]
[322992554,1713577847671,-500.0,0.00015068,2]
[322992555,1713577847680,-500.0,0.00015068,2]
[322992556,1713577847689,-541.03,0.00015068,2]
[322992557,1713577847698,-1131.54,0.00015068,2]
[322992558,1713577847708,-1473.33,0.00015068,2]
[322992559,1713577847717,-500.0,0.00015068,2]
[322992560,1713577847726,-1024.56556692,0.00015068,2]
[322992561,1713577848371,-410.34738903,0.00015068,2]
[322992562,1713577848436,-655.47272516,0.00015068,2]
[322992563,1713577848451,-1405.83431889,0.00015068,2]
[322992564,1713577848461,-1970.81,0.00015068,2]
[322992565,1713577848469,-1656.17,0.00015068,2]
[322992566,1713577848480,-500.0,0.00015068,2]
[322992567,1713577848489,-3098.67,0.00015068,2]
[322992568,1713577848499,-6346.91,0.00015068,2]
[322992569,1713577848509,-698.35,0.00015068,2]
[322992570,1713577848519,-1082.19,0.00015068,2]
[322992571,1713577848528,-937.76,0.00015068,2]
[322992572,1713577848537,-1972.64,0.00015068,2]
[322992573,1713577848547,-716.67,0.00015068,2]
[322992574,1713577848557,-500.0,0.00015068,2]
[322992575,1713577848566,-500.0,0.00015068,2]
[322992576,1713577848576,-3376.69,0.00015068,2]
[322992577,1713577848588,-527.64,0.00015068,2]
[322992578,1713577848597,-1513.76,0.00015068,2]
[322992579,1713577848607,-2347.4,0.00015068,2]
[322992580,1713577848616,-500.0,0.00015068,2]
[322992581,1713577848626,-500.0,0.00015068,2]
[322992582,1713577848635,-500.0,0.00015068,2]
[322992583,1713577848645,-500.0,0.00015068,2]
[322992584,1713577848654,-1218.43,0.00015068,2]
[322992585,1713577848664,-500.0,0.00015068,2]
[322992586,1713577848673,-1004.95,0.00015068,2]
[322992587,1713577848682,-500.0,0.00015068,2]
[322992588,1713577848691,-683.89,0.00015068,2]
[322992589,1713577848700,-2008.15,0.00015068,2]
[322992590,1713577848709,-1696.46,0.00015068,2]
[322992591,1713577848718,-500.0,0.00015068,2]
[322992592,1713577848730,-503.31865373,0.00015068,2]
[322992593,1713577848740,-1075.75,0.00015068,2]
[322992594,1713577848749,-1162.17,0.00015068,2]
[322992595,1713577848758,-500.0,0.00015068,2]
[322992596,1713577848767,-500.0,0.00015068,2]
[322992597,1713577848777,-500.0,0.00015068,2]
[322992598,1713577848786,-993.38,0.00015068,2]
[322992599,1713577848795,-592.36,0.00015068,2]
[322992600,1713577848805,-500.0,0.00015068,2]
[322992601,1713577848814,-1119.97,0.00015068,2]
[322992602,1713577848824,-500.0,0.00015068,2]
[322992603,1713577848833,-500.0,0.00015068,2]
[322992604,1713577848842,-500.0,0.00015068,2]
[322992605,1713577848852,-500.0,0.00015068,2]
[322992606,1713577848862,-500.0,0.00015068,2]
[322992607,1713577848872,-1101.18,0.00015068,2]
[322992608,1713577848882,-6526.9,0.00015068,2]
[322992609,1713577848893,-500.0,0.00015068,2]
[322992610,1713577848904,-1729.86,0.00015068,2]
[322992611,1713577848914,-2384.63,0.00015068,2]
[322992612,1713577848926,-1148.54,0.00015068,2]
[322992613,1713577848936,-2231.73,0.00015068,2]
[322992614,1713577848948,-5915.78,0.00015068,2]
[322992615,1713577848958,-500.0,0.00015068,2]
[322992616,1713577848969,-500.0,0.00015068,2]
[322992617,1713577848983,-500.0,0.00015068,2]
[322992618,1713577848994,-500.0,0.00015068,2]
[322992619,1713577849004,-500.0,0.00015068,2]
[322992620,1713577849014,-955.96,0.00015068,2]
[322992621,1713577849024,-634.4,0.00015068,2]
[322992622,1713577849034,-500.0,0.00015068,2]
[322992623,1713577849044,-623.3,0.00015068,2]
[322992624,1713577849054,-774.51,0.00015068,2]
[322992625,1713577849063,-2052.74,0.00015068,2]
[322992626,1713577849073,-500.0,0.00015068,2]
[322992627,1713577849082,-500.0,0.00015068,2]
[322992628,1713577849091,-646.02,0.00015068,2]
[322992629,1713577849100,-3710.05,0.00015068,2]
[322992630,1713577849109,-9201.97,0.00015068,2]
[322992631,1713577849118,-500.0,0.00015068,2]
[322992632,1713577849129,-1060.92,0.00015068,2]
[322992633,1713577849138,-504.01,0.00015068,2]
[322992634,1713577849147,-4060.62687198,0.00015101,2]
[322992635,1713577849156,-3000.0,0.0001519,2]
[322992636,1713577849165,-4060.62687198,0.00015234,2]
[322992637,1713577849177,-10000.0,0.00015242,2]
[322992638,1713577849187,-987.0549,0.00015242,2]
[322992639,1713577849197,-9390.65726536,0.00015242,2]
[322992640,1713577849207,-2000.0,0.000153,2]
[322992641,1713577849218,-2000.0,0.000153,2]
[322992642,1713577849231,-1754.0,0.000153,2]
[322992643,1713577849240,-150.0,0.00015335,2]
[322992644,1713577849250,-244.36500896,0.0001534,2]
[322992645,1713577849259,-501.09490488,0.00015342,2]
[322992646,1713577849271,-500.0,0.00015342,2]
[322992647,1713577849280,-500.0,0.00015342,2]
[322992648,1713577849292,-500.0,0.00015342,2]
[322992649,1713577849301,-1015.1,0.00015342,2]
[322992650,1713577849311,-500.0,0.00015342,2]
[322992651,1713577849320,-500.0,0.00015342,2]
[322992652,1713577849330,-875.05,0.00015342,2]
[322992653,1713577849340,-699.54,0.00015342,2]
[322992654,1713577849350,-695.82,0.00015342,2]
[322992655,1713577849360,-500.0,0.00015342,2]
[322992656,1713577849369,-500.0,0.00015342,2]
[322992657,1713577849378,-500.0,0.00015342,2]
[322992658,1713577849387,-500.0,0.00015342,2]
[322992659,1713577849397,-597.02,0.00015342,2]
[322992660,1713577849407,-340.00303177,0.00015342,2]
[322992661,1713577849417,-504.19523458,0.00015342,2]
[322992662,1713577849426,-500.0,0.00015342,2]
[322992663,1713577849436,-500.0,0.00015342,2]
[322992664,1713577849446,-500.0,0.00015342,2]
[322992665,1713577849455,-500.0,0.00015342,2]
[322992666,1713577849464,-500.0,0.00015342,2]
[322992667,1713577849474,-510.53,0.00015342,2]
[322992668,1713577849487,-500.0,0.00015342,2]
[322992669,1713577849495,-500.0,0.00015342,2]
[322992670,1713577849504,-634.38,0.00015342,2]
[322992671,1713577849512,-500.0,0.00015342,2]
[322992672,1713577849521,-500.0,0.00015342,2]
[322992673,1713577849530,-500.0,0.00015342,2]
[322992674,1713577849538,-948.71,0.00015342,2]
[322992675,1713577849547,-502.29760301,0.00015342,2]
[322992676,1713577849557,-500.0,0.00015342,2]
[322992677,1713577849567,-644.26,0.00015342,2]
[322992678,1713577849578,-500.0,0.00015342,2]
[322992679,1713577849590,-500.0,0.00015342,2]
[322992680,1713577849600,-500.0,0.00015342,2]
[322992681,1713577849609,-500.0,0.00015342,2]
[322992682,1713577849619,-500.0,0.00015342,2]
[322992683,1713577849630,-500.0,0.00015342,2]
[322992684,1713577849640,-527.7,0.00015342,2]
[322992685,1713577849649,-500.0,0.00015342,2]
[322992686,1713577849658,-500.0,0.00015342,2]
[322992687,1713577849667,-500.0,0.00015342,2]
[322992688,1713577849676,-500.0,0.00015342,2]
[322992689,1713577849686,-500.0,0.00015342,2]
[322992690,1713577849695,-543.13,0.00015342,2]
[322992691,1713577849704,-627.61,0.00015342,2]
[322992692,1713577849714,-500.0,0.00015342,2]
[322992693,1713577849723,-524.22,0.00015342,2]
[322992694,1713577849738,-500.0,0.00015342,2]
[322992695,1713577849747,-505.94697892,0.00015342,2]
[322992696,1713577849756,-500.0,0.00015342,2]
[322992697,1713577849768,-731.76,0.00015342,2]
[322992698,1713577849777,-500.0,0.00015342,2]
[322992699,1713577849786,-760.02,0.00015342,2]
[322992700,1713577849797,-500.0,0.00015342,2]
[322992701,1713577849806,-733.86,0.00015342,2]
[322992702,1713577849815,-500.0,0.00015342,2]
[322992703,1713577849824,-500.0,0.00015342,2]
[322992704,1713577849833,-856.55,0.00015342,2]
[322992705,1713577849844,-500.0,0.00015342,2]
[322992706,1713577849854,-500.0,0.00015342,2]
[322992707,1713577849864,-921.35,0.00015342,2]
[322992708,1713577849873,-500.0,0.00015342,2]
[322992709,1713577849882,-501.44036394,0.00015342,2]
[322992710,1713577849892,-500.0,0.00015342,2]
[322992711,1713577849902,-500.0,0.00015342,2]
[322992712,1713577849911,-500.0,0.00015342,2]
[322992713,1713577849920,-500.0,0.00015342,2]
[322992714,1713577849930,-500.0,0.00015342,2]
[322992715,1713577849939,-665.44,0.00015342,2]
[322992716,1713577849948,-500.0,0.00015342,2]
[322992717,1713577849956,-741.53,0.00015342,2]
[322992718,1713577849966,-529.71,0.00015342,2]
[322992719,1713577849975,-659.22,0.00015342,2]
[322992720,1713577849990,-912.82,0.00015342,2]
[322992721,1713577849999,-552.633982,0.00015342,2]
[322992722,1713577850008,-500.0,0.00015342,2]
[322992723,1713577850017,-500.0,0.00015342,2]
[322992724,1713577850026,-767.2,0.00015342,2]
[322992725,1713577850035,-611.76,0.00015342,2]
[322992726,1713577850044,-500.0,0.00015342,2]
[322992727,1713577850053,-523.66,0.00015342,2]
[322992728,1713577850062,-500.0,0.00015342,2]
[322992729,1713577850071,-513.67,0.00015342,2]
[322992730,1713577850080,-633.26273462,0.00015342,2]
[322992731,1713577850090,-500.0,0.00015342,2]
[322992732,1713577850098,-500.0,0.00015342,2]
[322992733,1713577850107,-500.0,0.00015342,2]
[322992734,1713577850116,-500.0,0.00015342,2]
[322992735,1713577850125,-576.3,0.00015342,2]
[322992736,1713577850135,-504.54444067,0.00015342,2]
[322992737,1713577850144,-500.0,0.00015342,2]
[322992738,1713577850153,-500.0,0.00015342,2]
[322992739,1713577850163,-531.56,0.00015342,2]
[322992740,1713577850173,-500.0,0.00015342,2]
[322992741,1713577850182,-1328.84,0.00015342,2]
[322992742,1713577850192,-500.0,0.00015342,2]
[322992743,1713577850202,-500.0,0.00015342,2]
[322992744,1713577850212,-500.0,0.00015342,2]
[322992745,1713577850222,-500.0,0.00015342,2]
[322992746,1713577850236,-500.0,0.00015342,2]
[322992747,1713577850245,-588.49,0.00015342,2]
[322992748,1713577850255,-500.0,0.00015342,2]
[322992749,1713577850264,-496.75111305,0.00015342,2]
[322992750,1713577850273,-500.0,0.00015342,2]
[322992751,1713577850282,-500.0,0.00015342,2]
[322992752,1713577850291,-500.0,0.00015342,2]
[322992753,1713577850301,-500.0,0.00015342,2]
[322992754,1713577850310,-500.0,0.00015342,2]
[322992755,1713577850320,-500.0,0.00015342,2]
[322992756,1713577850329,-502.6615387,0.00015342,2]
[322992757,1713577850339,-844.77,0.00015342,2]
[322992758,1713577850348,-1040.85,0.00015342,2]
[322992759,1713577850358,-288.12620996,0.00015342,2]
[322992760,1713577850367,-502.08668102,0.00015342,2]
[322992761,1713577850377,-500.0,0.00015342,2]
[322992762,1713577850386,-500.0,0.00015342,2]
[322992763,1713577850395,-500.0,0.00015342,2]
[322992764,1713577850404,-500.0,0.00015342,2]
[322992765,1713577850413,-500.0,0.00015342,2]
[322992766,1713577850423,-500.0,0.00015342,2]
[322992767,1713577850433,-500.0,0.00015342,2]
[322992768,1713577850443,-841.14,0.00015342,2]
[322992769,1713577850453,-500.0,0.00015342,2]
[322992770,1713577850462,-501.17474714,0.00015342,2]
[322992771,1713577850473,-581.39,0.00015342,2]
[322992772,1713577850486,-500.0,0.00015342,2]
[322992773,1713577850495,-500.0,0.00015342,2]
[322992774,1713577850505,-745.21,0.00015342,2]
[322992775,1713577850515,-501.91054886,0.00015342,2]
[322992776,1713577850524,-500.0,0.00015342,2]
[322992777,1713577850534,-500.0,0.00015342,2]
[322992778,1713577850543,-500.0,0.00015342,2]
[322992779,1713577850552,-500.0,0.00015342,2]
[322992780,1713577850563,-500.0,0.00015342,2]
[322992781,1713577850572,-501.07,0.00015342,2]
[322992782,1713577850582,-500.0,0.00015342,2]
[322992783,1713577850595,-500.0,0.00015342,2]
[322992784,1713577850604,-576.94,0.00015342,2]
[322992785,1713577850614,-513.96,0.00015342,2]
[322992786,1713577850624,-500.0,0.00015342,2]
[322992787,1713577850634,-500.0,0.00015342,2]
[322992788,1713577850644,-1726.33,0.00015342,2]
[322992789,1713577850653,-785.42,0.00015342,2]
[322992790,1713577850664,-500.0,0.00015342,2]
[322992791,1713577850673,-579.58,0.00015342,2]
[322992792,1713577850682,-500.0,0.00015342,2]
[322992793,1713577850692,-500.0,0.00015342,2]
[322992794,1713577850701,-1071.61,0.00015342,2]
[322992795,1713577850711,-500.0,0.00015342,2]
[322992796,1713577850720,-500.0,0.00015342,2]
[322992797,1713577850731,-500.0,0.00015342,2]
[322992798,1713577850741,-500.0,0.00015342,2]
[322992799,1713577850750,-1042.53,0.00015342,2]
[322992800,1713577850885,-500.0,0.00015342,2]
[322992801,1713577850896,-627.62,0.00015342,2]
[322992802,1713577850905,-500.0,0.00015342,2]
[322992803,1713577850915,-614.68,0.00015342,2]
[322992804,1713577850924,-500.0,0.00015342,2]
[322992805,1713577850934,-566.15,0.00015342,2]
[322992806,1713577850944,-861.66,0.00015342,2]
[322992807,1713577850953,-723.98,0.00015342,2]
[322992808,1713577850963,-502.01350276,0.00015342,2]
[322992809,1713577850973,-795.56,0.00015342,2]
[322992810,1713577850985,-500.0,0.00015342,2]
[322992811,1713577850995,-585.44,0.00015342,2]
[322992812,1713577851004,-864.76,0.00015342,2]
[322992813,1713577851013,-504.32,0.00015342,2]
[322992814,1713577851023,-500.0,0.00015342,2]
[322992815,1713577851032,-964.99,0.00015342,2]